bitfinex-derivatives/quotes_BNBF0:USTF0_20250401
["timestamp","ask_amount","ask_price","bid_price","bid_amount"]
[1743513126959,1.36395218,613.95,613.27,0.2722153]
[1743513127158,1.36395218,613.94,613.27,0.2722153]
[1743513127358,1.36395218,613.93,613.26,1.224]
[1743513127566,2.45419477,613.92,613.27,0.27217533]
[1743513127766,1.36395218,613.91,613.27,0.27217533]
[1743513128069,2.45419477,613.9,613.27,0.27217533]
[1743513128264,1.36395218,613.89,613.27,0.27217533]
[1743513128463,1.36395218,613.88,613.27,0.27217533]
[1743513128668,2.45404265,613.87,613.27,0.27217533]
[1743513128870,1.36380006,613.86,613.27,0.27217533]
[1743513129164,2.45404265,613.85,613.27,0.27217533]
[1743513129368,1.36380006,613.84,613.27,0.27217533]
[1743513129569,1.36380006,613.83,613.27,0.27217533]
[1743513129769,1.36380006,613.82,613.27,0.27217533]
[1743513129969,1.09024259,613.81,613.26,1.224]
[1743513130169,1.09024259,613.81,613.27,0.27217073]
[1743513130567,1.09024259,613.81,613.28,0.27215982]
[1743513130764,1.09024259,613.8,613.27,0.27215982]
[1743513131067,1.09024259,613.8,613.28,0.27215982]
[1743513131262,1.09024259,613.8,613.29,0.27215982]
[1743513131464,1.09024259,613.8,613.3,0.27215982]
[1743513131769,1.09024259,613.79,613.26,1.224]
[1743513131969,1.09024259,613.79,613.27,0.27217063]
[1743513132171,1.37385539,613.79,613.27,0.27217063]
[1743513132464,1.09024259,613.78,613.28,0.27218185]
[1743513132665,1.09024259,613.78,613.27,0.27218185]
[1743513132869,1.09024259,613.77,613.26,1.224]
[1743513133075,1.09024259,613.77,613.27,0.27218991]
[1743513133265,1.09024259,613.76,613.27,0.27218991]
[1743513133665,0.2836128,613.79,613.27,0.27218991]
[1743513133869,1.36386301,613.78,613.26,1.224]
[1743513134069,1.09037657,613.77,613.27,0.27219763]
[1743513134464,1.09037657,613.77,613.26,1.224]
[1743513134671,1.09037657,613.76,613.26,1.224]
[1743513135065,0.2836128,613.79,613.26,1.224]
[1743513135666,1.09044911,613.78,613.26,1.224]
[1743513136270,1.09044911,613.77,613.26,1.224]
[1743513137165,1.09044911,613.76,613.26,1.224]
[1743513137864,1.09044911,613.75,613.26,1.224]
[1743513138067,1.37408503,613.75,613.26,1.224]
[1743513138466,1.09044911,613.74,613.26,1.224]
[1743513138872,0.808,613.73,613.26,1.224]
[1743513139071,1.89844911,613.73,613.26,1.224]
[1743513139271,1.09044911,613.72,613.26,1.224]
[1743513139772,0.808,613.73,613.26,1.224]
[1743513141174,1.09078437,613.72,613.26,1.224]
[1743513141671,1.09078437,613.71,613.26,1.224]
[1743513142070,1.3744411,613.71,613.26,1.224]
[1743513142269,1.09078437,613.7,613.26,1.224]
[1743513142968,0.28365673,613.71,613.26,1.224]
[1743513142969,1.09078437,613.69,613.26,1.224]
[1743513143171,1.09078437,613.69,613.27,0.989]
[1743513143975,0.28365904,613.68,613.27,0.989]
[1743513146777,0.808,613.73,613.27,1.512]
[1743513147276,0.28365441,613.67,613.27,1.512]
[1743513149776,0.808,613.73,613.27,1.512]
[1743513149973,1.36513865,613.72,613.27,1.512]
[1743513150278,0.28365441,613.66,613.27,1.512]
[1743513150478,0.28365441,613.66,613.27,2.395]
[1743513152790,0.32566925,614.12,613.27,2.395]
[1743513152978,0.979,613.68,613.27,2.395]
[1743513153183,0.28360009,613.65,613.27,2.395]
[1743513153383,0.979,613.68,613.27,2.395]
[1743513153978,1.09190214,613.67,613.27,2.395]
[1743513154179,1.37555771,613.67,613.27,2.395]
[1743513154381,0.28365557,613.67,613.27,2.395]
[1743513155080,1.09205705,613.66,613.27,2.395]
[1743513155385,0.28365557,613.67,613.27,2.395]
[1743513155778,0.979,613.68,613.27,2.395]
[1743513155983,0.28364863,613.66,613.27,2.395]
[1743513156983,1.09229718,613.65,613.27,2.395]
[1743513157475,0.28364863,613.66,613.27,2.395]
[1743513157476,1.09229718,613.64,613.27,2.395]
[1743513158082,0.28364863,613.66,613.27,2.395]
[1743513158780,0.979,613.68,613.27,2.395]
[1743513158980,0.2836417,613.65,613.27,2.395]
[1743513161784,0.979,613.68,613.27,2.395]
[1743513162187,0.28365326,613.64,613.27,2.395]
[1743513163483,0.28365326,613.64,613.27,1.512]
[1743513164785,0.979,613.68,613.27,1.512]
[1743513164990,1.36641862,613.67,613.27,1.512]
[1743513165290,0.979,613.68,613.27,1.512]
[1743513165888,1.09239792,613.67,613.27,1.512]
[1743513166088,1.09239792,613.66,613.27,1.512]
[1743513166589,1.09239792,613.65,613.27,1.512]
[1743513167291,0.28365326,613.67,613.27,1.512]
[1743513167788,0.979,613.68,613.27,1.512]
[1743513167989,1.37608631,613.66,613.27,1.512]
[1743513168290,1.09243305,613.65,613.27,1.512]
[1743513168683,0.28365326,613.66,613.27,1.512]
[1743513169288,0.28365326,613.66,613.27,0.523]
[1743513169986,1.09246477,613.65,613.27,0.523]
[1743513170390,1.09246477,613.64,613.27,0.523]
[1743513171092,1.09246477,613.63,613.27,0.523]
[1743513171793,0.979,613.68,613.27,0.523]
[1743513172092,0.28366251,613.62,613.27,0.523]
[1743513173692,0.979,613.68,613.27,0.523]
[1743513173895,1.36653623,613.67,613.27,0.523]
[1743513174096,0.28365673,613.61,613.27,0.523]
[1743513174791,0.28365673,613.61,613.24,2.342]
[1743513176794,0.979,613.68,613.24,2.342]
[1743513177001,1.09280778,613.67,613.24,2.342]
[1743513177203,0.28365904,613.6,613.24,2.342]
[1743513177501,1.09280778,613.66,613.24,2.342]
[1743513177701,0.28366019,613.59,613.24,2.342]
[1743513179302,0.28366019,613.59,613.24,1.158]
[1743513179702,0.979,613.68,613.24,1.158]
[1743513180003,0.28363592,613.6,613.24,1.158]
[1743513180397,1.36679252,614.1,613.24,1.158]
[1743513180698,0.28358622,613.6,613.24,1.158]
[1743513180997,1.36679252,614.08,613.24,1.158]
[1743513181304,0.28358622,613.61,613.24,1.158]
[1743513181605,1.36679252,614.06,613.24,1.158]
[1743513181899,0.28358854,613.61,613.24,1.158]
[1743513182303,1.36679252,614.03,613.24,1.158]
[1743513182502,0.28359085,613.61,613.24,1.158]
[1743513182804,1.36679252,614.01,613.24,1.158]
[1743513183005,0.992,613.65,613.24,1.158]
[1743513183705,0.992,613.65,613.25,0.27186221]
[1743513187508,0.992,613.65,613.24,2.522]
[1743513187908,0.992,613.65,613.25,0.27167809]
[1743513188109,0.992,613.65,613.24,2.522]
[1743513188613,0.992,613.65,613.25,0.27167375]
[1743513189015,0.992,613.65,613.24,2.522]
[1743513189313,0.992,613.65,613.25,0.27151422]
[1743513189712,0.992,613.65,613.24,2.522]
[1743513189913,0.992,613.65,613.25,0.27152405]
[1743513190613,0.992,613.65,613.24,2.522]
[1743513193717,0.992,613.65,613.25,0.27146407]
[1743513199518,0.992,613.65,613.26,0.27136157]
[1743513199823,0.992,613.65,613.27,0.27136157]
[1743513200023,0.992,613.65,613.25,0.27136157]
[1743513200224,0.992,613.65,613.26,0.27136157]
[1743513200420,0.992,613.65,613.25,0.27136157]
[1743513201020,0.992,613.65,613.24,3.045]
[1743513201223,0.992,613.65,613.25,0.27129778]
[1743513203123,0.28361627,613.7,613.25,0.27129778]
[1743513203928,1.36369805,615.03,613.25,0.27129778]
[1743513204130,0.28345572,613.7,613.25,0.27129778]
[1743513204625,0.28345918,613.7,613.25,0.27129778]
[1743513205427,1.22045918,613.7,613.25,0.27129778]
[1743513205925,1.22045918,613.7,613.26,1.211]
[1743513206124,1.22045918,613.7,613.27,0.27126424]
[1743513206325,1.22045918,613.7,613.27,1.16826424]
[1743513206528,1.22045918,613.7,613.28,0.27126424]
[1743513206731,1.22045918,613.7,613.27,0.897]
[1743513209826,0.937,613.7,613.27,0.897]
[1743513210031,0.28361627,613.69,613.27,0.897]
[1743513212835,0.937,613.7,613.27,0.897]
[1743513214129,0.2836232,613.69,613.27,0.897]
[1743513214436,0.2836232,613.69,613.28,0.27130001]
[1743513215833,0.937,613.7,613.28,0.27130001]
[1743513216130,0.2836232,613.68,613.28,0.27130001]
[1743513217435,0.2836232,613.68,613.29,0.27147666]
[1743513217635,0.2836232,613.68,613.28,0.27147666]
[1743513217830,0.2836232,613.68,613.29,0.27147666]
[1743513218030,0.2836232,613.68,613.28,0.27147666]
[1743513218232,0.2836232,613.68,613.29,0.27147666]
[1743513218433,0.2836232,613.68,613.28,0.27147666]
[1743513218633,0.2836232,613.68,613.29,0.27147666]
[1743513218934,1.36393617,614.36,613.3,0.27147666]
[1743513219135,0.2835585,613.67,613.28,0.27147666]
[1743513219331,0.2835585,613.67,613.27,1.42]
[1743513219536,1.36393617,614.33,613.28,0.27159655]
[1743513219731,0.32554732,614.35,613.28,0.27159655]
[1743513219732,0.28356774,613.66,613.28,0.27159655]
[1743513220136,1.36395285,614.31,613.28,0.27159655]
[1743513220335,0.28357005,613.65,613.28,0.27159655]
[1743513220734,1.36395037,614.29,613.28,0.27159655]
[1743513220937,0.2835816,613.64,613.27,1.42]
[1743513221236,1.36395037,614.27,613.28,0.27167517]
[1743513221438,0.723,613.68,613.28,0.27167517]
[1743513221634,0.28358738,613.63,613.27,1.42]
[1743513221835,0.723,613.68,613.28,0.27167709]
[1743513222239,0.28365673,613.62,613.27,1.42]
[1743513222440,0.28365673,613.62,613.28,0.27167437]
[1743513222641,0.28365673,613.62,613.27,1.42]
[1743513224838,0.723,613.68,613.27,1.42]
[1743513225341,0.28366019,613.67,613.27,1.42]
[1743513226440,0.28366019,613.67,613.27,0.523]
[1743513227742,0.723,613.68,613.27,0.523]
[1743513228245,0.28366713,613.66,613.27,0.523]
[1743513233747,0.723,613.68,613.25,2.956]
[1743513234046,0.28366251,613.65,613.25,2.956]
[1743513236741,1.36389209,613.92,613.25,2.956]
[1743513236942,1.3640623,613.91,613.25,2.956]
[1743513237145,0.28359894,613.64,613.25,2.956]
[1743513237350,1.09044655,613.89,613.25,2.956]
[1743513237746,0.28357005,613.77,613.25,2.956]
[1743513237944,1.36396914,614.23,613.25,2.956]
[1743513238147,1.36396914,614.22,613.25,2.956]
[1743513238348,0.28353077,613.77,613.25,2.956]
[1743513238545,1.36396914,614.2,613.25,2.956]
[1743513238749,1.36396914,614.19,613.25,2.956]
[1743513238947,0.28353424,613.77,613.25,2.956]
[1743513239251,2.45427014,614.17,613.25,2.956]
[1743513239447,0.2835377,613.77,613.25,1.919]
[1743513239751,2.45427014,614.15,613.25,1.919]
[1743513239951,1.36396914,614.14,613.25,1.919]
[1743513240152,0.28354001,613.77,613.25,1.919]
[1743513240453,2.45427014,614.12,613.25,1.919]
[1743513240750,0.28354348,613.77,613.25,1.919]
[1743513240951,1.36396914,614.1,613.25,1.919]
[1743513241151,2.45427014,614.09,613.25,1.919]
[1743513241346,0.28355965,613.76,613.25,1.919]
[1743513241550,2.45427014,614.07,613.25,1.919]
[1743513241847,0.28356312,613.75,613.25,1.919]
[1743513242247,2.45427014,614.04,613.25,1.919]
[1743513242453,0.28356658,613.74,613.25,1.919]
[1743513242845,2.45427014,614.01,613.25,1.919]
[1743513243049,1.36396914,614.0,613.26,0.908]
[1743513243246,1.36396914,613.99,613.26,0.908]
[1743513243450,1.36396914,613.98,613.26,0.908]
[1743513243646,1.36396914,613.97,613.26,0.908]
[1743513243846,1.36396914,613.96,613.26,0.908]
[1743513244051,1.36396914,613.95,613.26,0.908]
[1743513244245,1.37387452,613.97,613.26,0.908]
[1743513244447,1.36350842,613.96,613.26,0.908]
[1743513244651,1.3634828,613.95,613.27,0.27135798]
[1743513244855,1.3634828,613.94,613.27,0.27135798]
[1743513245047,1.3634828,613.93,613.27,0.27135798]
[1743513245250,1.090301,613.96,613.27,0.27135798]
[1743513245251,1.3634828,613.92,613.27,0.27135798]
[1743513245446,1.3634828,613.91,613.27,0.27135798]
[1743513245650,1.3634828,613.9,613.27,0.27135798]
[1743513245848,1.090301,613.91,613.27,0.27135798]
[1743513246052,1.64715198,613.9,613.27,0.27135798]
[1743513246251,0.28361165,613.9,613.27,0.27135798]
[1743513246454,2.4538546,613.89,613.27,0.27135798]
[1743513246646,1.090301,613.89,613.27,0.27135798]
[1743513247450,1.090301,613.88,613.27,0.27135798]
[1743513247847,1.090301,613.87,613.27,0.27135798]
[1743513248045,1.08282547,613.87,613.27,0.27135798]
[1743513248251,0.28361165,613.9,613.27,0.27135798]
[1743513248748,1.145,614.19,613.27,1.39435798]
[1743513248951,1.36356079,614.18,613.28,0.27135798]
[1743513249154,1.36356079,614.18,613.27,1.123]
[1743513249155,0.28357236,613.89,613.29,0.27095701]
[1743513249349,1.145,614.19,613.28,0.27095701]
[1743513249653,1.145,614.19,613.27,1.123]
[1743513249654,1.36358442,614.18,613.29,0.27095701]
[1743513249853,1.36358442,614.17,613.3,0.27095701]
[1743513250053,1.36358442,614.16,613.28,0.27095701]
[1743513250246,0.28357236,614.17,613.27,1.123]
[1743513250247,1.36358442,614.15,613.31,0.27095701]
[1743513250449,1.36358442,614.14,613.27,1.123]
[1743513250751,0.28357236,614.17,613.27,1.123]
[1743513250752,1.36358442,614.13,613.27,1.123]
[1743513250950,1.36358442,614.12,613.27,1.123]
[1743513251151,1.36358442,614.11,613.27,1.123]
[1743513251348,1.36358442,614.1,613.27,1.646]
[1743513251553,1.36358442,614.09,613.27,1.646]
[1743513251749,1.36358442,614.08,613.27,1.646]
[1743513252051,1.36358442,614.07,613.27,1.646]
[1743513252252,1.36358442,614.06,613.27,1.646]
[1743513252452,1.36358442,614.05,613.27,1.646]
[1743513252653,0.32559502,614.26,613.27,1.646]
[1743513253153,0.28346033,614.25,613.27,1.646]
[1743513253351,0.60906065,614.25,613.27,1.646]
[1743513253551,1.3638429,614.24,613.27,1.646]
[1743513253755,1.3638429,614.23,613.27,1.646]
[1743513253957,1.3638429,614.22,613.27,1.646]
[1743513254256,1.3638429,614.21,613.27,1.646]
[1743513254450,1.3638429,614.2,613.27,1.646]
[1743513254652,1.3638429,614.19,613.27,1.646]
[1743513254858,1.3638429,614.18,613.27,1.646]
[1743513255051,1.3638429,614.17,613.27,1.646]
[1743513255252,1.36391552,614.16,613.27,1.646]
[1743513255453,1.36391552,614.15,613.27,1.646]
[1743513255654,1.36391552,614.14,613.27,1.646]
[1743513255850,1.36391552,614.13,613.27,1.646]
[1743513256154,1.36391552,614.12,613.27,1.646]
[1743513256352,1.36391552,614.11,613.27,1.646]
[1743513256554,1.36391552,614.1,613.27,1.646]
[1743513256757,1.36391552,614.09,613.27,1.646]
[1743513256957,1.36391552,614.08,613.27,1.646]
[1743513257157,1.36391552,614.07,613.27,1.646]
[1743513257354,1.36391552,614.06,613.27,1.646]
[1743513257555,1.36391552,614.05,613.28,0.27108279]
[1743513257751,1.36391552,614.04,613.28,0.27108279]
[1743513257957,1.36391552,614.03,613.28,0.27108279]
[1743513258155,1.36391552,614.02,613.28,0.27108279]
[1743513258350,1.36391552,614.01,613.28,0.27108279]
[1743513258555,1.36391552,614.0,613.28,0.27108279]
[1743513258854,1.36391552,613.99,613.28,0.27108279]
[1743513259059,1.36391552,613.98,613.28,0.27108279]
[1743513259352,1.36391552,613.97,613.28,0.27108279]
[1743513259553,1.36391552,613.96,613.28,0.27108279]
[1743513259757,1.36391552,613.95,613.27,1.646]
[1743513260057,0.28358969,614.04,613.27,1.646]
[1743513260259,1.36388693,614.03,613.27,1.646]
[1743513260456,2.4540847,614.02,613.27,1.646]
[1743513260657,1.36388693,614.01,613.27,1.646]
[1743513260857,1.36388693,614.0,613.27,1.646]
[1743513261057,1.36388693,613.99,613.27,1.646]
[1743513264361,1.08999454,613.94,613.27,1.646]
[1743513264659,1.08999454,613.93,613.27,1.646]
[1743513265053,1.08999454,613.92,613.27,1.646]
[1743513265254,1.36355583,613.91,613.27,1.646]
[1743513265456,1.08999454,613.9,613.27,1.646]
[1743513266160,1.08999454,613.89,613.27,1.646]
[1743513266553,1.08999454,613.88,613.27,1.646]
[1743513266960,1.36356043,613.98,613.27,1.646]
[1743513267154,0.902,614.23,613.27,1.646]
[1743513267155,1.36356043,613.97,613.27,1.646]
[1743513267358,1.36356043,613.96,613.27,1.646]
[1743513267554,1.36356043,613.95,613.27,1.646]
[1743513267859,1.09000843,613.97,613.27,1.646]
[1743513268057,1.36354207,613.96,613.27,1.646]
[1743513268254,1.3735935,613.94,613.27,1.646]
[1743513268661,1.09000843,613.93,613.27,1.646]
[1743513269052,1.09000843,613.92,613.27,1.646]
[1743513269454,1.09000843,613.91,613.27,1.646]
[1743513269660,1.09000843,613.91,613.27,2.7]
[1743513270254,1.37360043,613.9,613.27,2.7]
[1743513270660,1.37360043,613.9,613.28,0.27064955]
[1743513271061,0.283592,613.9,613.28,0.27064955]
[1743513271660,0.283592,613.9,613.29,0.27067639]
[1743513271860,0.283592,613.9,613.28,0.27067639]
[1743513272056,1.021,613.89,613.29,0.27067639]
[1743513272259,1.021,613.89,613.3,0.27067639]
[1743513272459,1.021,613.89,613.28,0.27067639]
[1743513272660,1.021,613.89,613.27,1.577]
[1743513272661,1.021,613.89,613.29,0.27067639]
[1743513272861,1.021,613.89,613.3,0.27067639]
[1743513273056,1.021,613.89,613.28,0.27067639]
[1743513273260,1.021,613.89,613.29,0.27067639]
[1743513273455,1.021,613.89,613.3,0.27067639]
[1743513273660,1.021,613.89,613.28,0.27067639]
[1743513273961,1.021,613.89,613.3,0.865]
[1743513274165,1.021,613.89,613.31,0.27067639]
[1743513274759,1.021,613.89,613.32,0.27070055]
[1743513274964,1.08989846,613.88,613.33,0.27070055]
[1743513275264,1.08989846,613.88,613.34,0.27070055]
[1743513275461,1.08989846,613.88,613.31,0.27070055]
[1743513275662,1.021,613.89,613.32,0.27070055]
[1743513275862,1.021,613.89,613.31,0.27070055]
[1743513276058,0.28359085,613.88,613.32,0.27070055]
[1743513276462,0.28359085,613.88,613.33,0.27070055]
[1743513276662,0.28359085,613.88,613.34,0.27070055]
[1743513276858,0.28359085,613.88,613.35,0.27070055]
[1743513277057,0.28359085,613.88,613.36,0.523]
[1743513278866,1.08997925,613.87,613.36,0.523]
[1743513279165,1.37358165,613.87,613.36,0.523]
[1743513279663,1.08997925,613.86,613.36,0.523]
[1743513280369,1.08997925,613.85,613.36,0.523]
[1743513282173,0.28360702,613.84,613.36,0.523]
[1743513284876,1.021,613.89,613.36,0.523]
[1743513285070,0.28359085,613.83,613.36,0.523]
[1743513286273,0.28359085,613.83,613.37,1.146]
[1743513287675,0.28359085,613.83,613.38,0.27064282]
[1743513287869,1.021,613.89,613.38,0.27064282]
[1743513288174,0.28357814,613.82,613.38,0.27064282]
[1743513288975,0.28357814,613.82,613.39,1.069]
[1743513289477,0.28357814,613.82,613.4,0.27058426]
[1743513290880,1.021,613.89,613.4,0.27058426]
[1743513291273,0.28355503,613.81,613.4,0.27058426]
[1743513291474,1.021,613.89,613.4,0.27058426]
[1743513292377,1.021,613.89,613.39,1.069]
[1743513292580,0.28355503,613.88,613.4,0.27052867]
[1743513293779,1.021,613.89,613.4,0.27052867]
[1743513293979,1.021,613.89,613.39,1.069]
[1743513294172,0.28356658,613.87,613.4,0.27056318]
[1743513295581,0.28356658,613.87,613.39,1.069]
[1743513295783,0.28356658,613.87,613.4,0.27048481]
[1743513296880,0.32560032,614.25,613.4,0.27048481]
[1743513297078,1.36526756,614.24,613.4,0.27048481]
[1743513297279,1.36526756,614.23,613.4,0.27048481]
[1743513297479,1.36526756,614.22,613.4,0.27048481]
[1743513297680,1.36526756,614.21,613.4,0.27048481]
[1743513297881,1.36526756,614.2,613.4,0.27048481]
[1743513298080,1.36526756,614.19,613.4,0.27048481]
[1743513298280,0.28351345,614.2,613.4,0.27048481]
[1743513298281,1.36526756,614.18,613.4,0.27048481]
[1743513298580,1.36526756,614.17,613.4,0.27048481]
[1743513298781,1.36526756,614.16,613.4,0.27048481]
[1743513298978,1.36526756,614.15,613.4,0.27048481]
[1743513299182,1.36526756,614.14,613.4,0.27048481]
[1743513299482,2.45660993,614.13,613.4,0.27048481]
[1743513299684,1.36526756,614.12,613.4,0.27048481]
[1743513299877,1.36526756,614.11,613.4,0.27048481]
[1743513300077,2.45660993,614.1,613.4,0.27048481]
[1743513300277,1.36526756,614.09,613.4,0.27048481]
[1743513300480,2.45660993,614.08,613.4,0.27048481]
[1743513300684,1.36526756,614.07,613.4,0.27048481]
[1743513300883,1.36526756,614.06,613.4,0.27048481]
[1743513301084,1.36526756,614.05,613.4,0.27048481]
[1743513301382,1.36526756,614.04,613.4,0.27048481]
[1743513301587,1.36526756,614.03,613.39,1.069]
[1743513301782,2.45660993,614.02,613.4,0.27049958]
[1743513301984,1.36526756,614.01,613.4,0.27049958]
[1743513302186,1.36526756,614.0,613.4,0.27049958]
[1743513302382,2.45660993,613.99,613.4,0.27049958]
[1743513302584,2.45660993,613.98,613.4,0.27049958]
[1743513302781,1.36526756,613.97,613.4,0.27049958]
[1743513302983,1.36526756,613.96,613.4,0.27049958]
[1743513303186,1.36526756,613.95,613.38,0.27049958]
[1743513303385,1.36526756,613.94,613.39,0.27049958]
[1743513303582,1.09134237,613.93,613.4,0.27049958]
[1743513303779,1.09134237,613.93,613.38,0.27049958]
[1743513303984,1.09134237,613.92,613.39,0.27049958]
[1743513304181,1.09134237,613.92,613.4,0.27049958]
[1743513304384,1.09134237,613.92,613.41,0.27049958]
[1743513304584,1.09134237,613.92,613.42,0.27049958]
[1743513304781,0.28355619,613.97,613.37,1.146]
[1743513304982,0.28355619,613.97,613.38,0.27031951]
[1743513305592,0.28355619,613.97,613.39,0.523]
[1743513305891,0.918,614.11,613.39,0.523]
[1743513306087,1.36516401,614.1,613.4,0.27031951]
[1743513306391,1.36516401,614.09,613.4,0.27031951]
[1743513306587,1.36516401,614.08,613.4,0.27031951]
[1743513306790,1.36516401,614.07,613.4,1.14031951]
[1743513306990,1.36516401,614.06,613.41,0.27031951]
[1743513307189,2.45636227,614.05,613.41,0.27031951]
[1743513307385,1.36516401,614.04,613.41,0.27031951]
[1743513307691,1.36516401,614.03,613.41,1.48531951]
[1743513307889,0.28354001,614.07,613.41,1.48531951]
[1743513307890,2.45636227,614.02,613.42,0.27031951]
[1743513308094,1.36516401,614.01,613.42,0.27031951]
[1743513308394,1.36516401,614.0,613.42,0.27031951]
[1743513308585,2.45636227,613.99,613.42,0.27031951]
[1743513308790,1.36516401,613.98,613.42,0.27031951]
[1743513308991,1.36516401,613.97,613.42,0.27031951]
[1743513309188,1.36516401,613.96,613.42,0.27031951]
[1743513309391,2.45636227,613.95,613.42,0.27031951]
[1743513309591,1.36516401,613.94,613.42,0.27031951]
[1743513309792,1.09119826,613.95,613.41,1.215]
[1743513309793,2.45636227,613.93,613.41,1.215]
[1743513309992,1.36516401,613.92,613.41,1.215]
[1743513310191,1.36516401,613.91,613.41,1.215]
[1743513310490,1.36516401,613.91,613.42,0.27041167]
[1743513310491,1.09119826,613.91,613.42,0.27041167]
[1743513311195,1.09119826,613.9,613.42,0.27041167]
[1743513311396,1.36532311,613.89,613.41,1.215]
[1743513311597,1.09119826,613.9,613.41,1.215]
[1743513311795,2.4565211,613.89,613.41,1.215]
[1743513311989,1.09119826,613.89,613.41,1.215]
[1743513312193,1.09119826,613.88,613.41,1.215]
[1743513312795,0.28355503,613.98,613.41,1.215]
[1743513313095,1.36546403,613.97,613.41,1.215]
[1743513313296,1.36546403,613.96,613.41,1.215]
[1743513313496,1.36546403,613.95,613.41,1.215]
[1743513313697,1.36546403,613.94,613.41,1.215]
[1743513313995,2.45697899,613.93,613.41,1.215]
[1743513314193,1.36546403,613.92,613.41,1.215]
[1743513314390,1.36546403,613.91,613.41,1.215]
[1743513314591,1.36546403,613.9,613.41,1.215]
[1743513314795,2.45697899,613.89,613.41,1.215]
[1743513314991,1.36580161,613.88,613.41,1.215]
[1743513315190,2.45731657,613.87,613.41,1.215]
[1743513315393,1.09151496,613.87,613.41,1.215]
[1743513315591,1.09151496,613.86,613.41,1.215]
[1743513315897,1.09151496,613.85,613.41,1.215]
[1743513316597,1.09151496,613.84,613.41,1.215]
[1743513317197,1.09151496,613.84,613.42,0.2702843]
[1743513317393,0.28357698,613.89,613.42,0.2702843]
[1743513317598,1.3662676,613.88,613.42,0.2702843]
[1743513317795,1.3662676,613.87,613.41,1.215]
[1743513318101,2.45843576,613.86,613.42,0.27029673]
[1743513318294,1.09216816,613.86,613.42,0.27029673]
[1743513318701,1.09216816,613.85,613.42,0.27029673]
[1743513319297,0.28358391,613.87,613.42,0.27029673]
[1743513319695,1.09227619,613.86,613.42,0.27029673]
[1743513319899,1.09227619,613.86,613.4,0.27029673]
[1743513320100,1.09227619,613.86,613.39,0.523]
[1743513320101,1.09227619,613.85,613.39,0.523]
[1743513320501,1.09227619,613.85,613.4,0.2703475]
[1743513320699,0.28358391,613.87,613.4,0.2703475]
[1743513320902,0.918,614.11,613.4,0.2703475]
[1743513321104,0.28355965,613.86,613.4,0.2703475]
[1743513321503,1.09225436,614.1,613.4,0.2703475]
[1743513321703,1.36642989,614.09,613.4,0.2703475]
[1743513321904,1.36642989,614.08,613.4,0.2703475]
[1743513322100,1.36642989,614.07,613.4,0.2703475]
[1743513322300,1.36642989,614.06,613.4,1.4133475]
[1743513322500,2.45868425,614.05,613.41,0.2703475]
[1743513322805,1.36642989,614.04,613.41,0.2703475]
[1743513323004,1.36642989,614.03,613.41,0.2703475]
[1743513323298,1.36642989,614.02,613.41,0.2703475]
[1743513323506,1.36642989,614.01,613.41,0.2703475]
[1743513323705,1.36642989,614.0,613.41,0.2703475]
[1743513323906,1.36642989,613.99,613.41,0.2703475]
[1743513324106,1.36642989,613.98,613.41,0.2703475]
[1743513324406,2.45868425,613.97,613.41,0.2703475]
[1743513324607,1.36642989,613.96,613.41,0.2703475]
[1743513324906,2.45868425,613.95,613.41,0.2703475]
[1743513325102,1.36642989,613.94,613.41,0.2703475]
[1743513325300,1.36642989,613.93,613.41,0.2703475]
[1743513325505,2.45868425,613.92,613.41,0.2703475]
[1743513325705,1.09225436,613.92,613.41,0.2703475]
[1743513325905,1.09225436,613.92,613.42,0.27021196]
[1743513326102,1.09225436,613.91,613.4,2.117]
[1743513326408,1.09225436,613.91,613.41,0.27020278]
[1743513326607,1.09225436,613.9,613.41,0.27020278]
[1743513327005,1.09225436,613.89,613.41,0.27020278]
[1743513327207,1.37582094,613.89,613.41,0.27020278]
[1743513327411,1.09225436,613.88,613.41,0.27020278]
[1743513327808,0.28356658,613.89,613.41,0.27020278]
[1743513328908,0.28356658,613.89,613.41,0.523]
[1743513329107,0.28356658,613.89,613.42,0.2702294]